[Event "Titled Tuesday Blitz August 15 Late 2023"]
[White "Dragomirescu, Robin-Alexandru"]
[Black "Kim, Yoon-Young"]
[WhiteFideId "1213849"]
[BlackFideId "30908779"]
[WhiteElo "2515"]
[BlackElo "2756"]
[Result "1-0"]
[Round "2"]
[TimeControl "180+1"]
[Date "2023.08.15"]
[WhiteClock "0:00:06"]
[BlackClock "0:00:03"]
[Board "54"]

1. b3 {[%clk 0:03:00]}  d5 {[%clk 0:02:58]} 2. Bb2 {[%clk 0:02:59]}  Bf5 {[%clk 0:02:58]} 3. e3 {[%clk 0:02:55]}  e6 {[%clk 0:02:56]} 4. Nf3 {[%clk 0:02:55]}  Nf6 {[%clk 0:02:53]} 5. d3 {[%clk 0:02:52]}  Be7 {[%clk 0:02:50]} 6. Nbd2 {[%clk 0:02:52]}  h6 {[%clk 0:02:50]} 7. Qe2 {[%clk 0:02:53]}  Bh7 {[%clk 0:02:51]} 8. e4 {[%clk 0:02:51]}  c5 {[%clk 0:02:47]} 9. g3 {[%clk 0:02:46]}  Nc6 {[%clk 0:02:47]} 10. Bg2 {[%clk 0:02:46]}  O-O {[%clk 0:02:45]} 11. O-O {[%clk 0:02:43]}  a5 {[%clk 0:02:42]} 12. e5 {[%clk 0:02:33]}  Nd7 {[%clk 0:02:42]} 13. Rfe1 {[%clk 0:02:26]}  a4 {[%clk 0:02:41]} 14. Nf1 {[%clk 0:02:13]}  b5 {[%clk 0:02:20]} 15. h4 {[%clk 0:02:09]}  Qc7 {[%clk 0:02:03]} 16. h5 {[%clk 0:02:00]}  Rfc8 {[%clk 0:02:02]} 17. Ne3 {[%clk 0:01:52]}  Nb4 {[%clk 0:01:41]} 18. Ng4 {[%clk 0:01:38]}  Bf8 {[%clk 0:01:23]} 19. a3 {[%clk 0:00:57]}  Nc6 {[%clk 0:01:19]} 20. bxa4 {[%clk 0:00:53]}  Rxa4 {[%clk 0:01:12]} 21. Bh3 {[%clk 0:00:47]}  c4 {[%clk 0:00:54]} 22. Qe3 {[%clk 0:00:34]}  Rca8 {[%clk 0:00:45]} 23. dxc4 {[%clk 0:00:29]}  bxc4 {[%clk 0:00:35]} 24. Nd4 {[%clk 0:00:28]}  Rb8 {[%clk 0:00:31]} 25. Bc3 {[%clk 0:00:24]}  Rxa3 {[%clk 0:00:26]} 26. Rxa3 {[%clk 0:00:24]}  Bxa3 {[%clk 0:00:27]} 27. Nxh6+ {[%clk 0:00:15]}  gxh6 {[%clk 0:00:27]} 28. Qxh6 {[%clk 0:00:12]}  Nxd4 {[%clk 0:00:17]} 29. Bxd4 {[%clk 0:00:10]}  Bf8 {[%clk 0:00:18]} 30. Qg5+ {[%clk 0:00:10]}  Kh8 {[%clk 0:00:19]} 31. Qf4 {[%clk 0:00:05]}  Qd8 {[%clk 0:00:10]} 32. Qxf7 {[%clk 0:00:05]}  Qe7 {[%clk 0:00:10]} 33. Qxe7 {[%clk 0:00:05]}  Bxe7 {[%clk 0:00:11]} 34. Bxe6 {[%clk 0:00:05]}  Nb6 {[%clk 0:00:06]} 35. Bxb6 {[%clk 0:00:06]}  Rxb6 {[%clk 0:00:07]} 36. Bxd5 {[%clk 0:00:07]}  c3 {[%clk 0:00:08]} 37. Bb3 {[%clk 0:00:04]}  Bc5 {[%clk 0:00:05]} 38. Rd1 {[%clk 0:00:03]}  Kg7 {[%clk 0:00:04]} 39. Kf1 {[%clk 0:00:03]}  Bf5 {[%clk 0:00:03]} 40. Ke2 {[%clk 0:00:03]}  Bg4+ {[%clk 0:00:02]} 41. f3 {[%clk 0:00:03]}  Bxh5 {[%clk 0:00:03]} 42. Rd3 {[%clk 0:00:03]}  Bb4 {[%clk 0:00:02]} 43. g4 {[%clk 0:00:03]}  Bg6 {[%clk 0:00:03]} 44. Rd7+ {[%clk 0:00:03]}  Kh6 {[%clk 0:00:04]} 45. f4 {[%clk 0:00:03]}  Be4 {[%clk 0:00:04]} 46. Ke3 {[%clk 0:00:03]}  Bg6 {[%clk 0:00:04]} 47. f5 {[%clk 0:00:03]}  Bc5+ {[%clk 0:00:05]} 48. Kf4 {[%clk 0:00:04]}  Be8 {[%clk 0:00:05]} 49. g5+ {[%clk 0:00:04]}  Kh5 {[%clk 0:00:03]} 50. Rh7+ {[%clk 0:00:05]}  Rh6 {[%clk 0:00:03]} 51. Rxh6# {[%clk 0:00:06]} 1-0


[Site "https://www.chess.com"]

[Event "Titled Tuesday Blitz August 15 Late 2023"]
[White "Morefield, Jason"]
[Black "Marra, Eduardo da Costa"]
[WhiteFideId "30920825"]
[BlackFideId "2106990"]
[WhiteElo "2752"]
[BlackElo "2514"]
[Result "1-0"]
[Round "2"]
[TimeControl "180+1"]
[Date "2023.08.15"]
[WhiteClock "0:00:03"]
[BlackClock "0:00:02"]
[Board "55"]

1. Nf3 {[%clk 0:03:00]}  c5 {[%clk 0:02:59]} 2. g3 {[%clk 0:03:01]}  Nc6 {[%clk 0:03:00]} 3. Bg2 {[%clk 0:03:00]}  g6 {[%clk 0:03:00]} 4. O-O {[%clk 0:03:00]}  Bg7 {[%clk 0:03:01]} 5. c4 {[%clk 0:03:00]}  d6 {[%clk 0:03:01]} 6. d3 {[%clk 0:03:00]}  Nf6 {[%clk 0:03:02]} 7. Nc3 {[%clk 0:02:56]}  Qd7 {[%clk 0:03:02]} 8. a3 {[%clk 0:02:53]}  O-O {[%clk 0:03:00]} 9. Rb1 {[%clk 0:02:53]}  a5 {[%clk 0:02:58]} 10. Nd5 {[%clk 0:02:47]}  Nxd5 {[%clk 0:02:49]} 11. cxd5 {[%clk 0:02:48]}  Nd4 {[%clk 0:02:50]} 12. Nd2 {[%clk 0:02:44]}  Qg4 {[%clk 0:02:39]} 13. f3 {[%clk 0:02:31]}  Qh5 {[%clk 0:02:31]} 14. e3 {[%clk 0:02:15]}  Nb5 {[%clk 0:02:30]} 15. f4 {[%clk 0:01:55]}  Bg4 {[%clk 0:02:26]} 16. Qb3 {[%clk 0:01:53]}  Nc7 {[%clk 0:02:19]} 17. Qxb7 {[%clk 0:01:40]}  Rfc8 {[%clk 0:02:19]} 18. Qb3 {[%clk 0:01:27]}  a4 {[%clk 0:02:14]} 19. Qc4 {[%clk 0:01:23]}  Rcb8 {[%clk 0:02:04]} 20. b4 {[%clk 0:01:05]}  axb3 {[%clk 0:02:03]} 21. Rxb3 {[%clk 0:01:04]}  Bh3 {[%clk 0:01:38]} 22. Bxh3 {[%clk 0:00:49]}  Qxh3 {[%clk 0:01:37]} 23. Rxb8+ {[%clk 0:00:43]}  Rxb8 {[%clk 0:01:36]} 24. Qe4 {[%clk 0:00:43]}  Qd7 {[%clk 0:01:25]} 25. Nc4 {[%clk 0:00:40]}  f5 {[%clk 0:01:07]} 26. Qf3 {[%clk 0:00:36]}  Rb3 {[%clk 0:01:06]} 27. Qd1 {[%clk 0:00:29]}  Qb5 {[%clk 0:00:57]} 28. g4 {[%clk 0:00:23]}  Nxd5 {[%clk 0:00:51]} 29. gxf5 {[%clk 0:00:23]}  gxf5 {[%clk 0:00:49]} 30. Kh1 {[%clk 0:00:21]}  Nf6 {[%clk 0:00:38]} 31. Rf3 {[%clk 0:00:12]}  Qb7 {[%clk 0:00:37]} 32. Kg1 {[%clk 0:00:11]}  Rb1 {[%clk 0:00:36]} 33. Rg3 {[%clk 0:00:11]}  Kh8 {[%clk 0:00:30]} 34. Qc2 {[%clk 0:00:07]}  Nd5 {[%clk 0:00:21]} 35. Kf2 {[%clk 0:00:04]}  Bf6 {[%clk 0:00:19]} 36. e4 {[%clk 0:00:03]}  fxe4 {[%clk 0:00:17]} 37. dxe4 {[%clk 0:00:04]}  Bd4+ {[%clk 0:00:17]} 38. Kg2 {[%clk 0:00:04]}  Nf6 {[%clk 0:00:18]} 39. Nd2 {[%clk 0:00:02]}  Ra1 {[%clk 0:00:16]} 40. Nb3 {[%clk 0:00:02]}  Rxc1 {[%clk 0:00:13]} 41. Nxc1 {[%clk 0:00:03]}  Nxe4 {[%clk 0:00:12]} 42. Rf3 {[%clk 0:00:03]}  Nf6 {[%clk 0:00:11]} 43. Qd3 {[%clk 0:00:02]}  Qb2+ {[%clk 0:00:10]} 44. Ne2 {[%clk 0:00:02]}  Kg7 {[%clk 0:00:07]} 45. Kh3 {[%clk 0:00:03]}  Kf7 {[%clk 0:00:05]} 46. Rg3 {[%clk 0:00:02]}  Qa1 {[%clk 0:00:03]} 47. Nxd4 {[%clk 0:00:01]}  Qf1+ {[%clk 0:00:03]} 48. Qxf1 {[%clk 0:00:01]}  cxd4 {[%clk 0:00:03]} 49. Kg2 {[%clk 0:00:02]}  Ne4 {[%clk 0:00:03]} 50. Qd3 {[%clk 0:00:02]}  d5 {[%clk 0:00:03]} 51. Qxd4 {[%clk 0:00:02]}  Nf6 {[%clk 0:00:04]} 52. Qe5 {[%clk 0:00:03]}  e6 {[%clk 0:00:05]} 53. f5 {[%clk 0:00:03]}  Nd7 {[%clk 0:00:02]} 54. Qxe6+ {[%clk 0:00:03]} 1-0


[Site "https://www.chess.com"]

[Event "Titled Tuesday Blitz August 15 Late 2023"]
[White "Poltorak, Sebastian"]
[Black "Schmakel, Sam"]
[WhiteFideId "1199498"]
[BlackFideId "2039311"]
[WhiteElo "2513"]
[BlackElo "2749"]
[Result "1/2-1/2"]
[Round "2"]
[TimeControl "180+1"]
[Date "2023.08.15"]
[WhiteClock "0:00:06"]
[BlackClock "0:00:07"]
[Board "56"]

1. c4 {[%clk 0:02:59]}  e6 {[%clk 0:02:58]} 2. Nc3 {[%clk 0:02:59]}  Nf6 {[%clk 0:02:55]} 3. e4 {[%clk 0:02:59]}  c5 {[%clk 0:02:56]} 4. Nf3 {[%clk 0:02:57]}  Nc6 {[%clk 0:02:55]} 5. e5 {[%clk 0:02:49]}  Ng4 {[%clk 0:02:48]} 6. d4 {[%clk 0:02:47]}  cxd4 {[%clk 0:02:47]} 7. Nxd4 {[%clk 0:02:48]}  Ngxe5 {[%clk 0:02:44]} 8. Ndb5 {[%clk 0:02:39]}  d6 {[%clk 0:01:39]} 9. Ne4 {[%clk 0:02:05]}  d5 {[%clk 0:01:38]} 10. cxd5 {[%clk 0:02:04]}  exd5 {[%clk 0:01:26]} 11. Qxd5 {[%clk 0:01:50]}  Bb4+ {[%clk 0:01:26]} 12. Bd2 {[%clk 0:01:48]}  O-O {[%clk 0:01:19]} 13. Qxd8 {[%clk 0:01:34]}  Rxd8 {[%clk 0:01:20]} 14. Rd1 {[%clk 0:01:22]}  Bg4 {[%clk 0:01:06]} 15. Be2 {[%clk 0:00:30]}  Nd3+ {[%clk 0:01:01]} 16. Kf1 {[%clk 0:00:24]}  Nxb2 {[%clk 0:00:46]} 17. Rb1 {[%clk 0:00:20]}  Bxe2+ {[%clk 0:00:22]} 18. Kxe2 {[%clk 0:00:21]}  Bxd2 {[%clk 0:00:23]} 19. Nxd2 {[%clk 0:00:09]}  Nd3 {[%clk 0:00:21]} 20. Rhd1 {[%clk 0:00:05]}  Rd7 {[%clk 0:00:16]} 21. Nf3 {[%clk 0:00:03]}  Rad8 {[%clk 0:00:12]} 22. g3 {[%clk 0:00:03]}  f6 {[%clk 0:00:08]} 23. Nc3 {[%clk 0:00:02]}  Kf7 {[%clk 0:00:06]} 24. Kf1 {[%clk 0:00:02]}  Nc5 {[%clk 0:00:06]} 25. Rxd7+ {[%clk 0:00:02]}  Rxd7 {[%clk 0:00:06]} 26. Ke2 {[%clk 0:00:02]}  a6 {[%clk 0:00:06]} 27. Kf1 {[%clk 0:00:02]}  b5 {[%clk 0:00:07]} 28. Ne2 {[%clk 0:00:02]}  Na5 {[%clk 0:00:06]} 29. Rc1 {[%clk 0:00:03]}  Nc4 {[%clk 0:00:07]} 30. Nf4 {[%clk 0:00:03]}  Nd3 {[%clk 0:00:06]} 31. Rd1 {[%clk 0:00:02]}  Nc5 {[%clk 0:00:06]} 32. Rxd7+ {[%clk 0:00:02]}  Nxd7 {[%clk 0:00:07]} 33. Nd5 {[%clk 0:00:03]}  Nc5 {[%clk 0:00:06]} 34. Nc7 {[%clk 0:00:03]}  Ke7 {[%clk 0:00:07]} 35. Nd4 {[%clk 0:00:04]}  Kd7 {[%clk 0:00:07]} 36. Nd5 {[%clk 0:00:04]}  g6 {[%clk 0:00:06]} 37. Nxf6+ {[%clk 0:00:04]}  Kd6 {[%clk 0:00:07]} 38. Nxh7 {[%clk 0:00:05]}  b4 {[%clk 0:00:07]} 39. Nc2 {[%clk 0:00:05]}  a5 {[%clk 0:00:07]} 40. Nf8 {[%clk 0:00:06]}  g5 {[%clk 0:00:06]} 41. Nh7 {[%clk 0:00:06]}  Ne6 {[%clk 0:00:05]} 42. h4 {[%clk 0:00:06]}  gxh4 {[%clk 0:00:05]} 43. gxh4 {[%clk 0:00:06]}  Nf4 {[%clk 0:00:05]} 44. Ng5 {[%clk 0:00:05]}  Kc5 {[%clk 0:00:04]} 45. Ne4+ {[%clk 0:00:05]}  Kd5 {[%clk 0:00:03]} 46. Ng3 {[%clk 0:00:04]}  a4 {[%clk 0:00:03]} 47. Nxb4+ {[%clk 0:00:04]}  Kc5 {[%clk 0:00:03]} 48. Nc2 {[%clk 0:00:04]}  Ne5 {[%clk 0:00:03]} 49. h5 {[%clk 0:00:04]}  Kc4 {[%clk 0:00:02]} 50. h6 {[%clk 0:00:04]}  Kc3 {[%clk 0:00:03]} 51. Ne3 {[%clk 0:00:03]}  Kb2 {[%clk 0:00:03]} 52. h7 {[%clk 0:00:03]}  Nfg6 {[%clk 0:00:04]} 53. f4 {[%clk 0:00:04]}  Nf7 {[%clk 0:00:02]} 54. f5 {[%clk 0:00:04]}  Ne7 {[%clk 0:00:02]} 55. f6 {[%clk 0:00:04]}  Ng6 {[%clk 0:00:02]} 56. Nc4+ {[%clk 0:00:02]}  Kxa2 {[%clk 0:00:02]} 57. Nb6 {[%clk 0:00:03]}  a3 {[%clk 0:00:02]} 58. Nc4 {[%clk 0:00:03]}  Kb3 {[%clk 0:00:03]} 59. Nxa3 {[%clk 0:00:04]}  Kxa3 {[%clk 0:00:04]} 60. Nf5 {[%clk 0:00:04]}  Kb4 {[%clk 0:00:04]} 61. Ne7 {[%clk 0:00:04]}  Ngh8 {[%clk 0:00:02]} 62. Kf2 {[%clk 0:00:04]}  Kc5 {[%clk 0:00:03]} 63. Ng8 {[%clk 0:00:04]}  Kd6 {[%clk 0:00:04]} 64. Kf3 {[%clk 0:00:05]}  Ke6 {[%clk 0:00:05]} 65. Kf4 {[%clk 0:00:05]}  Ng6+ {[%clk 0:00:04]} 66. Kg4 {[%clk 0:00:06]}  Ngh8 {[%clk 0:00:04]} 67. Kh5 {[%clk 0:00:06]}  Kf5 {[%clk 0:00:05]} 68. Nh6+ {[%clk 0:00:05]}  Nxh6 {[%clk 0:00:04]} 69. Kxh6 {[%clk 0:00:06]}  Kxf6 {[%clk 0:00:05]} 70. Kh5 {[%clk 0:00:06]}  Kg7 {[%clk 0:00:06]} 71. Kg4 {[%clk 0:00:06]}  Kxh7 {[%clk 0:00:07]} 1/2-1/2


[Site "https://www.chess.com"]

[Event "Titled Tuesday Blitz August 15 Late 2023"]
[White "Fernandez Guillen, Ernesto J."]
[Black "Hristodoulou, Panagiotis"]
[WhiteFideId "3512428"]
[BlackFideId "4214340"]
[WhiteElo "2735"]
[BlackElo "2508"]
[Result "1-0"]
[Round "2"]
[TimeControl "180+1"]
[Date "2023.08.15"]
[WhiteClock "0:00:15"]
[BlackClock "0:00:00"]
[Board "60"]

1. e4 {[%clk 0:03:00]}  Nf6 {[%clk 0:02:58]} 2. Nc3 {[%clk 0:02:50]}  e6 {[%clk 0:02:58]} 3. Nf3 {[%clk 0:01:55]}  d5 {[%clk 0:02:57]} 4. e5 {[%clk 0:01:55]}  Nfd7 {[%clk 0:02:57]} 5. d4 {[%clk 0:01:55]}  c5 {[%clk 0:02:58]} 6. Ne2 {[%clk 0:01:56]}  Nc6 {[%clk 0:02:59]} 7. c3 {[%clk 0:01:56]}  Be7 {[%clk 0:02:53]} 8. h4 {[%clk 0:01:50]}  f6 {[%clk 0:02:45]} 9. Nf4 {[%clk 0:01:48]}  Ndb8 {[%clk 0:02:22]} 10. Bd3 {[%clk 0:01:36]}  cxd4 {[%clk 0:01:48]} 11. cxd4 {[%clk 0:01:29]}  f5 {[%clk 0:01:25]} 12. h5 {[%clk 0:01:22]}  b6 {[%clk 0:01:21]} 13. Be3 {[%clk 0:01:20]}  Qd7 {[%clk 0:01:20]} 14. a3 {[%clk 0:01:18]}  Ba6 {[%clk 0:01:20]} 15. Bc2 {[%clk 0:01:12]}  Na5 {[%clk 0:01:19]} 16. b4 {[%clk 0:01:00]}  Nc4 {[%clk 0:01:19]} 17. Ba4 {[%clk 0:00:56]}  b5 {[%clk 0:01:14]} 18. Bc2 {[%clk 0:00:55]}  Bb7 {[%clk 0:01:09]} 19. g4 {[%clk 0:00:48]}  fxg4 {[%clk 0:00:42]} 20. Nd2 {[%clk 0:00:47]}  Nxe3 {[%clk 0:00:40]} 21. fxe3 {[%clk 0:00:46]}  Bg5 {[%clk 0:00:19]} 22. Qxg4 {[%clk 0:00:42]}  Bxf4 {[%clk 0:00:20]} 23. exf4 {[%clk 0:00:43]}  Nc6 {[%clk 0:00:12]} 24. Nf3 {[%clk 0:00:40]}  O-O-O {[%clk 0:00:10]} 25. Rc1 {[%clk 0:00:38]}  Kb8 {[%clk 0:00:11]} 26. O-O {[%clk 0:00:35]}  Rdf8 {[%clk 0:00:10]} 27. Bd3 {[%clk 0:00:33]}  a6 {[%clk 0:00:10]} 28. Be2 {[%clk 0:00:26]}  g6 {[%clk 0:00:11]} 29. h6 {[%clk 0:00:25]}  Rf5 {[%clk 0:00:11]} 30. a4 {[%clk 0:00:25]}  bxa4 {[%clk 0:00:10]} 31. b5 {[%clk 0:00:25]}  axb5 {[%clk 0:00:11]} 32. Bxb5 {[%clk 0:00:25]}  Rhf8 {[%clk 0:00:10]} 33. Bxc6 {[%clk 0:00:25]}  Bxc6 {[%clk 0:00:11]} 34. Ng5 {[%clk 0:00:20]}  Bb5 {[%clk 0:00:05]} 35. Rf2 {[%clk 0:00:18]}  Qa7 {[%clk 0:00:06]} 36. Nxe6 {[%clk 0:00:15]}  R8f7 {[%clk 0:00:03]} 37. Nc5 {[%clk 0:00:15]}  Rc7 {[%clk 0:00:01]} 38. Rb2 {[%clk 0:00:14]}  Qa5 {[%clk 0:00:00]} 39. Rcb1 {[%clk 0:00:15]} 1-0


[Site "https://www.chess.com"]

[Event "Titled Tuesday Blitz August 15 Late 2023"]
[White "Lobanov, Sergei"]
[Black "Merino Garcia, Rafael II"]
[WhiteFideId "24183750"]
[BlackFideId "2209128"]
[WhiteElo "2734"]
[BlackElo "2486"]
[Result "1-0"]
[Round "2"]
[TimeControl "180+1"]
[Date "2023.08.15"]
[WhiteClock "0:01:15"]
[BlackClock "0:01:02"]
[Board "61"]

1. d4 {[%clk 0:02:46]}  Nf6 {[%clk 0:02:59]} 2. c4 {[%clk 0:02:46]}  e6 {[%clk 0:02:59]} 3. Nc3 {[%clk 0:02:47]}  Bb4 {[%clk 0:02:58]} 4. e3 {[%clk 0:02:47]}  b6 {[%clk 0:02:57]} 5. Ne2 {[%clk 0:02:46]}  Bb7 {[%clk 0:02:57]} 6. a3 {[%clk 0:02:46]}  Be7 {[%clk 0:02:53]} 7. d5 {[%clk 0:02:46]}  e5 {[%clk 0:02:44]} 8. e4 {[%clk 0:02:45]}  O-O {[%clk 0:02:41]} 9. Ng3 {[%clk 0:02:44]}  d6 {[%clk 0:02:34]} 10. Nf5 {[%clk 0:02:41]}  g6 {[%clk 0:02:22]} 11. Nxe7+ {[%clk 0:02:32]}  Qxe7 {[%clk 0:02:22]} 12. Bg5 {[%clk 0:02:30]}  Nbd7 {[%clk 0:02:22]} 13. h4 {[%clk 0:02:30]}  h5 {[%clk 0:02:14]} 14. g4 {[%clk 0:01:43]}  Qe8 {[%clk 0:02:12]} 15. Be2 {[%clk 0:01:35]}  Nxg4 {[%clk 0:02:02]} 16. Bxg4 {[%clk 0:01:34]}  hxg4 {[%clk 0:02:02]} 17. Qxg4 {[%clk 0:01:29]}  f5 {[%clk 0:01:53]} 18. Qg2 {[%clk 0:01:29]}  Nf6 {[%clk 0:01:44]} 19. h5 {[%clk 0:01:24]}  Rd8 {[%clk 0:01:21]} 20. O-O-O {[%clk 0:01:16]}  Rd7 {[%clk 0:01:18]} 21. hxg6 {[%clk 0:01:16]}  Qxg6 {[%clk 0:01:18]} 22. Rh6 {[%clk 0:01:16]}  Qg7 {[%clk 0:01:15]} 23. exf5 {[%clk 0:01:16]}  Nh7 {[%clk 0:01:02]} 24. Rg6 {[%clk 0:01:15]} 1-0


[Site "https://www.chess.com"]

[Event "Titled Tuesday Blitz August 15 Late 2023"]
[White "NigelDwarf"]
[Black "Jaracz, Pawel"]
[BlackFideId "1102222"]
[WhiteElo "2482"]
[BlackElo "2727"]
[Result "0-1"]
[Round "2"]
[TimeControl "180+1"]
[Date "2023.08.15"]
[WhiteClock "0:00:04"]
[BlackClock "0:00:18"]
[Board "62"]

1. Nf3 {[%clk 0:03:00]}  b5 {[%clk 0:02:55]} 2. e4 {[%clk 0:02:58]}  Bb7 {[%clk 0:02:54]} 3. Bxb5 {[%clk 0:02:57]}  Bxe4 {[%clk 0:02:55]} 4. O-O {[%clk 0:02:57]}  e6 {[%clk 0:02:55]} 5. Nc3 {[%clk 0:02:55]}  Bxf3 {[%clk 0:02:55]} 6. Qxf3 {[%clk 0:02:54]}  c6 {[%clk 0:02:55]} 7. Ba4 {[%clk 0:02:38]}  Nf6 {[%clk 0:02:54]} 8. d4 {[%clk 0:02:38]}  Be7 {[%clk 0:02:53]} 9. Bf4 {[%clk 0:02:35]}  O-O {[%clk 0:02:53]} 10. Rfe1 {[%clk 0:02:30]}  Qb6 {[%clk 0:02:52]} 11. Rad1 {[%clk 0:02:13]}  d5 {[%clk 0:02:41]} 12. Bb3 {[%clk 0:02:03]}  Nbd7 {[%clk 0:02:38]} 13. Na4 {[%clk 0:01:43]}  Qa5 {[%clk 0:02:35]} 14. h3 {[%clk 0:01:38]}  Nb6 {[%clk 0:02:24]} 15. Nc5 {[%clk 0:01:33]}  Bxc5 {[%clk 0:02:20]} 16. dxc5 {[%clk 0:01:33]}  Qxc5 {[%clk 0:02:21]} 17. Be5 {[%clk 0:01:33]}  Nbd7 {[%clk 0:02:19]} 18. Bd4 {[%clk 0:01:32]}  Qb4 {[%clk 0:02:16]} 19. Qg3 {[%clk 0:01:15]}  a5 {[%clk 0:02:07]} 20. c3 {[%clk 0:01:04]}  Qb7 {[%clk 0:02:01]} 21. Qh4 {[%clk 0:01:02]}  c5 {[%clk 0:01:57]} 22. Bxf6 {[%clk 0:00:57]}  Nxf6 {[%clk 0:01:57]} 23. Rd3 {[%clk 0:00:55]}  a4 {[%clk 0:01:19]} 24. Rg3 {[%clk 0:00:52]}  Ne4 {[%clk 0:01:19]} 25. Bc2 {[%clk 0:00:38]}  f5 {[%clk 0:01:05]} 26. Bxe4 {[%clk 0:00:30]}  dxe4 {[%clk 0:00:59]} 27. f3 {[%clk 0:00:24]}  exf3 {[%clk 0:00:35]} 28. Rxe6 {[%clk 0:00:21]}  Rae8 {[%clk 0:00:20]} 29. Rxe8 {[%clk 0:00:10]}  f2+ {[%clk 0:00:20]} 30. Kxf2 {[%clk 0:00:09]}  Rxe8 {[%clk 0:00:20]} 31. Rf3 {[%clk 0:00:08]}  Qxb2+ {[%clk 0:00:21]} 32. Kg3 {[%clk 0:00:08]}  g6 {[%clk 0:00:21]} 33. Qf6 {[%clk 0:00:08]}  Qb8+ {[%clk 0:00:20]} 34. Kh4 {[%clk 0:00:08]}  Qd8 {[%clk 0:00:20]} 35. Qxd8 {[%clk 0:00:09]}  Rxd8 {[%clk 0:00:21]} 36. Rf2 {[%clk 0:00:09]}  Rd3 {[%clk 0:00:21]} 37. Rc2 {[%clk 0:00:08]}  Kg7 {[%clk 0:00:21]} 38. g4 {[%clk 0:00:07]}  Kf6 {[%clk 0:00:19]} 39. gxf5 {[%clk 0:00:08]}  g5+ {[%clk 0:00:19]} 40. Kg4 {[%clk 0:00:08]}  c4 {[%clk 0:00:19]} 41. Rb2 {[%clk 0:00:06]}  h5+ {[%clk 0:00:18]} 42. Kxh5 {[%clk 0:00:06]}  Rxh3+ {[%clk 0:00:19]} 43. Kg4 {[%clk 0:00:06]}  Rh4+ {[%clk 0:00:19]} 44. Kg3 {[%clk 0:00:06]}  Kxf5 {[%clk 0:00:20]} 45. Rb4 {[%clk 0:00:07]}  Re4 {[%clk 0:00:19]} 46. Rxa4 {[%clk 0:00:07]}  Re3+ {[%clk 0:00:20]} 47. Kf2 {[%clk 0:00:07]}  Rxc3 {[%clk 0:00:20]} 48. Rb4 {[%clk 0:00:04]}  Kf4 {[%clk 0:00:20]} 49. a4 {[%clk 0:00:04]}  Rc2+ {[%clk 0:00:21]} 50. Ke1 {[%clk 0:00:04]}  g4 {[%clk 0:00:21]} 51. Rb8 {[%clk 0:00:04]}  g3 {[%clk 0:00:21]} 52. Rf8+ {[%clk 0:00:04]}  Ke3 {[%clk 0:00:21]} 53. Rg8 {[%clk 0:00:04]}  g2 {[%clk 0:00:21]} 54. Rg3+ {[%clk 0:00:03]}  Kf4 {[%clk 0:00:20]} 55. Rg8 {[%clk 0:00:03]}  c3 {[%clk 0:00:18]} 56. a5 {[%clk 0:00:02]}  Rc1+ {[%clk 0:00:17]} 57. Kf2 {[%clk 0:00:02]}  g1=Q+ {[%clk 0:00:18]} 58. Rxg1 {[%clk 0:00:03]}  Rxg1 {[%clk 0:00:18]} 59. Kxg1 {[%clk 0:00:04]}  c2 {[%clk 0:00:18]} 0-1


[Site "https://www.chess.com"]

[Event "Titled Tuesday Blitz August 15 Late 2023"]
[White "carokannlover213"]
[Black "Dinu, Dumitru-Daniel"]
[BlackFideId "1208403"]
[WhiteElo "2722"]
[BlackElo "2481"]
[Result "1-0"]
[Round "2"]
[TimeControl "180+1"]
[Date "2023.08.15"]
[WhiteClock "0:01:31"]
[BlackClock "0:00:38"]
[Board "63"]

1. e4 {[%clk 0:03:00]}  c5 {[%clk 0:02:59]} 2. Nf3 {[%clk 0:03:01]}  Nc6 {[%clk 0:02:59]} 3. d4 {[%clk 0:03:00]}  cxd4 {[%clk 0:03:00]} 4. Nxd4 {[%clk 0:03:00]}  Nf6 {[%clk 0:03:00]} 5. Nc3 {[%clk 0:03:00]}  e5 {[%clk 0:03:00]} 6. Ndb5 {[%clk 0:03:01]}  d6 {[%clk 0:03:00]} 7. Nd5 {[%clk 0:02:57]}  Nxd5 {[%clk 0:02:59]} 8. exd5 {[%clk 0:02:58]}  Nb8 {[%clk 0:03:00]} 9. a4 {[%clk 0:02:58]}  Be7 {[%clk 0:03:00]} 10. Bd2 {[%clk 0:02:55]}  O-O {[%clk 0:02:59]} 11. Be2 {[%clk 0:02:54]}  f5 {[%clk 0:02:59]} 12. O-O {[%clk 0:02:54]}  Bf6 {[%clk 0:02:55]} 13. Bb4 {[%clk 0:02:52]}  Be7 {[%clk 0:02:54]} 14. a5 {[%clk 0:02:52]}  a6 {[%clk 0:02:53]} 15. Na3 {[%clk 0:02:52]}  f4 {[%clk 0:02:43]} 16. Nc4 {[%clk 0:02:48]}  Bf5 {[%clk 0:02:32]} 17. Bg4 {[%clk 0:02:39]}  Bg6 {[%clk 0:01:58]} 18. Nb6 {[%clk 0:02:35]}  Ra7 {[%clk 0:01:57]} 19. c4 {[%clk 0:02:34]}  Qe8 {[%clk 0:01:37]} 20. Nc8 {[%clk 0:02:31]}  Ra8 {[%clk 0:01:32]} 21. Nxd6 {[%clk 0:02:18]}  Bxd6 {[%clk 0:01:28]} 22. Bxd6 {[%clk 0:02:19]}  Rf6 {[%clk 0:01:28]} 23. Be6+ {[%clk 0:02:15]}  Rxe6 {[%clk 0:01:22]} 24. dxe6 {[%clk 0:02:16]}  Qxe6 {[%clk 0:01:23]} 25. Qd5 {[%clk 0:02:16]}  Qxd5 {[%clk 0:01:23]} 26. cxd5 {[%clk 0:02:16]}  Nd7 {[%clk 0:01:23]} 27. Rac1 {[%clk 0:02:15]}  Nf6 {[%clk 0:01:12]} 28. Bxe5 {[%clk 0:02:14]}  Nxd5 {[%clk 0:01:12]} 29. Rfd1 {[%clk 0:02:13]}  Bf7 {[%clk 0:01:12]} 30. Rc5 {[%clk 0:01:57]}  Nb4 {[%clk 0:00:54]} 31. Rc7 {[%clk 0:01:48]}  Nc6 {[%clk 0:00:53]} 32. Bxf4 {[%clk 0:01:44]}  Re8 {[%clk 0:00:52]} 33. h3 {[%clk 0:01:41]}  Nxa5 {[%clk 0:00:52]} 34. Rdd7 {[%clk 0:01:41]}  Bg6 {[%clk 0:00:50]} 35. Rxg7+ {[%clk 0:01:40]}  Kh8 {[%clk 0:00:50]} 36. Bd2 {[%clk 0:01:34]}  Nc6 {[%clk 0:00:43]} 37. Bc3 {[%clk 0:01:34]}  Ne5 {[%clk 0:00:38]} 38. Rge7 {[%clk 0:01:31]} 1-0


[Site "https://www.chess.com"]